[Event "*** Titled Tuesday Blitz"]
[Site "Chess.com"]
[Date "2020.01.07"]
[Round "7"]
[White "FairChess_on_YouTube"]
[Black "TheBigBoss04"]
[Result "1-0"]
[WhiteElo "2991"]
[BlackElo "2728"]
[TimeControl "180+2"]
[EndTime "14:37:47 PST"]
[Termination "FairChess_on_YouTube won by checkmate"]

1. e4 {[%clk 0:02:42.4]} 1... g6 {[%clk 0:03:00.7]} 2. d4 {[%clk 0:02:41.4]}
2... Bg7 {[%clk 0:03:00.2]} 3. Nf3 {[%clk 0:02:42.8]} 3... d6 {[%clk 0:03:00.9]}
4. Bc4 {[%clk 0:02:43.7]} 4... a6 {[%clk 0:03:01.5]} 5. O-O {[%clk 0:02:43]}
5... e6 {[%clk 0:03:01.3]} 6. c3 {[%clk 0:02:43.6]} 6... b6 {[%clk 0:02:59.8]}
7. Re1 {[%clk 0:02:43.9]} 7... Bb7 {[%clk 0:03:01.3]} 8. Nbd2 {[%clk 0:02:44.5]}
8... Nd7 {[%clk 0:03:02.5]} 9. Nf1 {[%clk 0:02:45.1]} 9... Ne7 {[%clk 0:02:58]}
10. Ng3 {[%clk 0:02:45.9]} 10... h6 {[%clk 0:02:59.2]} 11. a4 {[%clk 0:02:42.5]}
11... O-O {[%clk 0:02:58.6]} 12. Bd3 {[%clk 0:02:39.1]} 12... c5 {[%clk
0:02:58.7]} 13. Bf4 {[%clk 0:02:39.1]} 13... e5 {[%clk 0:02:49.5]} 14. dxe5
{[%clk 0:02:38.7]} 14... Nxe5 {[%clk 0:02:50.6]} 15. Nxe5 {[%clk 0:02:30.6]}
15... dxe5 {[%clk 0:02:51.5]} 16. Be3 {[%clk 0:02:32.1]} 16... Qc7 {[%clk
0:02:47.1]} 17. Bc4 {[%clk 0:02:31.8]} 17... Kh7 {[%clk 0:02:44.7]} 18. Qc2
{[%clk 0:02:13.2]} 18... Rad8 {[%clk 0:02:43]} 19. f3 {[%clk 0:02:06.9]} 19...
h5 {[%clk 0:02:43.1]} 20. Qe2 {[%clk 0:02:04.5]} 20... Qc8 {[%clk 0:02:37.7]}
21. Rad1 {[%clk 0:01:59.8]} 21... h4 {[%clk 0:02:32.8]} 22. Bg5 {[%clk
0:01:59.3]} 22... f6 {[%clk 0:02:13.3]} 23. Bxh4 {[%clk 0:02:00.4]} 23... g5
{[%clk 0:02:14.6]} 24. f4 {[%clk 0:02:01.9]} 24... gxh4 {[%clk 0:01:04.1]} 25.
Qh5+ {[%clk 0:02:02.4]} 25... Bh6 {[%clk 0:01:05.5]} 26. Rxd8 {[%clk 0:01:30.6]}
26... Qxd8 {[%clk 0:01:05.4]} 27. Rd1 {[%clk 0:01:31.1]} 27... Qc7 {[%clk
0:00:38.7]} 28. Nf5 {[%clk 0:01:13.6]} 28... Nxf5 {[%clk 0:00:34.1]} 29. Qxf5+
{[%clk 0:01:15.5]} 29... Kh8 {[%clk 0:00:21.5]} 30. Rd7 {[%clk 0:01:17.4]} 30...
Qxd7 {[%clk 0:00:21]} 31. Qxd7 {[%clk 0:01:17.8]} 31... Bxe4 {[%clk 0:00:21.8]}
32. Qe7 {[%clk 0:01:10.5]} 32... Bg6 {[%clk 0:00:07.5]} 33. fxe5 {[%clk
0:01:04.6]} 33... fxe5 {[%clk 0:00:09.4]} 34. Qxh4 {[%clk 0:01:02.7]} 34... Kg7
{[%clk 0:00:09.4]} 35. Qe7+ {[%clk 0:01:03.5]} 35... Kh8 {[%clk 0:00:08]} 36.
Qxe5+ {[%clk 0:01:04.1]} 36... Bg7 {[%clk 0:00:09.8]} 37. Qe6 {[%clk 0:00:56.8]}
37... Kh7 {[%clk 0:00:09]} 38. Qh3+ {[%clk 0:00:53.6]} 38... Bh6 {[%clk
0:00:08.5]} 39. Bd3 {[%clk 0:00:54.6]} 39... Bxd3 {[%clk 0:00:05.8]} 40. Qxd3+
{[%clk 0:00:55.3]} 40... Kg7 {[%clk 0:00:07.6]} 41. g3 {[%clk 0:00:55.3]} 41...
a5 {[%clk 0:00:07.5]} 42. Kg2 {[%clk 0:00:54.3]} 42... Rf6 {[%clk 0:00:09]} 43.
h4 {[%clk 0:00:54.3]} 43... Bc1 {[%clk 0:00:10.2]} 44. b3 {[%clk 0:00:54.9]}
44... Re6 {[%clk 0:00:05.1]} 45. Kh3 {[%clk 0:00:51.2]} 45... Be3 {[%clk
0:00:04.9]} 46. Kg4 {[%clk 0:00:47.6]} 46... Rg6+ {[%clk 0:00:04.1]} 47. Kf3
{[%clk 0:00:45.4]} 47... Bh6 {[%clk 0:00:04.4]} 48. Qd7+ {[%clk 0:00:45.7]}
48... Kg8 {[%clk 0:00:03.3]} 49. Qe8+ {[%clk 0:00:45.9]} 49... Kh7 {[%clk
0:00:03.7]} 50. g4 {[%clk 0:00:43.2]} 50... Rf6+ {[%clk 0:00:04.5]} 51. Kg2
{[%clk 0:00:44]} 51... Bg7 {[%clk 0:00:03]} 52. g5 {[%clk 0:00:41.6]} 52... Rf4
{[%clk 0:00:03.7]} 53. Kg3 {[%clk 0:00:41.2]} 53... Rf1 {[%clk 0:00:04.5]} 54.
Qe4+ {[%clk 0:00:40.9]} 54... Kh8 {[%clk 0:00:06.2]} 55. Qa8+ {[%clk 0:00:40.1]}
55... Kh7 {[%clk 0:00:06.8]} 56. Qe4+ {[%clk 0:00:36.3]} 56... Kh8 {[%clk
0:00:07.9]} 57. h5 {[%clk 0:00:37.2]} 57... Rg1+ {[%clk 0:00:07.8]} 58. Kh4
{[%clk 0:00:36.9]} 58... Rc1 {[%clk 0:00:02.8]} 59. Qe8+ {[%clk 0:00:35]} 59...
Kh7 {[%clk 0:00:03.3]} 60. g6+ {[%clk 0:00:36.2]} 60... Kh6 {[%clk 0:00:03.8]}
61. Qe3# {[%clk 0:00:38.1]} 1-0

[Event "*** Titled Tuesday Blitz"]
[Site "Chess.com"]
[Date "2020.01.07"]
[Round "7"]
[White "SavelijTartakover"]
[Black "KRASAVCHIK2002"]
[Result "0-1"]
[WhiteElo "2697"]
[BlackElo "2501"]
[TimeControl "180+2"]
[EndTime "14:37:49 PST"]
[Termination "KRASAVCHIK2002 won by resignation"]

1. d4 {[%clk 0:02:59.6]} 1... Nf6 {[%clk 0:02:57.8]} 2. Nf3 {[%clk 0:02:55.6]}
2... g6 {[%clk 0:02:53.2]} 3. c4 {[%clk 0:02:54.6]} 3... Bg7 {[%clk 0:02:52.9]}
4. Nc3 {[%clk 0:02:54.9]} 4... d5 {[%clk 0:02:54]} 5. cxd5 {[%clk 0:02:45.3]}
5... Nxd5 {[%clk 0:02:55.9]} 6. Bd2 {[%clk 0:02:46.5]} 6... Nb6 {[%clk
0:02:44.9]} 7. Bg5 {[%clk 0:02:45]} 7... h6 {[%clk 0:02:35.2]} 8. Bh4 {[%clk
0:02:45.7]} 8... O-O {[%clk 0:02:36.2]} 9. e3 {[%clk 0:02:45.9]} 9... N8d7
{[%clk 0:02:25.7]} 10. Rc1 {[%clk 0:02:38.7]} 10... Nf6 {[%clk 0:02:16.2]} 11.
Be2 {[%clk 0:02:36.1]} 11... c6 {[%clk 0:02:13.2]} 12. O-O {[%clk 0:02:34.8]}
12... Bf5 {[%clk 0:01:19.5]} 13. Ne5 {[%clk 0:02:30.4]} 13... Rc8 {[%clk
0:01:08.6]} 14. Bf3 {[%clk 0:02:23.5]} 14... Nbd7 {[%clk 0:00:53.2]} 15. Bg3
{[%clk 0:01:34.7]} 15... Nxe5 {[%clk 0:00:47.6]} 16. Bxe5 {[%clk 0:01:35.3]}
16... Be6 {[%clk 0:00:40.3]} 17. Qa4 {[%clk 0:01:32.5]} 17... Qb6 {[%clk
0:00:36.1]} 18. Qa3 {[%clk 0:01:30.5]} 18... Rfe8 {[%clk 0:00:23.5]} 19. Rfe1
{[%clk 0:01:11.9]} 19... Nd5 {[%clk 0:00:21.4]} 20. Bxg7 {[%clk 0:01:07.3]}
20... Kxg7 {[%clk 0:00:23.3]} 21. Na4 {[%clk 0:01:08]} 21... Qa5 {[%clk
0:00:23.2]} 22. Nc5 {[%clk 0:01:04.3]} 22... Qxa3 {[%clk 0:00:21.6]} 23. bxa3
{[%clk 0:01:00.3]} 23... Rc7 {[%clk 0:00:23.1]} 24. Nxe6+ {[%clk 0:00:59.5]}
24... fxe6 {[%clk 0:00:24.1]} 25. Rc5 {[%clk 0:00:56.6]} 25... b6 {[%clk
0:00:21.6]} 26. Rc4 {[%clk 0:00:56]} 26... c5 {[%clk 0:00:20.9]} 27. Rec1 {[%clk
0:00:53.7]} 27... Rec8 {[%clk 0:00:21.2]} 28. Kf1 {[%clk 0:00:45.4]} 28... Kf6
{[%clk 0:00:17.9]} 29. g3 {[%clk 0:00:44.8]} 29... g5 {[%clk 0:00:09.8]} 30. Kg2
{[%clk 0:00:40.3]} 30... g4 {[%clk 0:00:07.8]} 31. Bxg4 {[%clk 0:00:31.9]} 31...
cxd4 {[%clk 0:00:08.4]} 32. Rxc7 {[%clk 0:00:32.6]} 32... Rxc7 {[%clk
0:00:10.3]} 33. Rxc7 {[%clk 0:00:33.2]} 33... Nxc7 {[%clk 0:00:12.2]} 34. exd4
{[%clk 0:00:27]} 34... Nb5 {[%clk 0:00:12.1]} 35. Kf3 {[%clk 0:00:24]} 35...
Nxd4+ {[%clk 0:00:12.8]} 36. Ke3 {[%clk 0:00:24.8]} 36... Nc2+ {[%clk
0:00:13.9]} 37. Ke4 {[%clk 0:00:18.1]} 37... Nxa3 {[%clk 0:00:15.8]} 38. Be2
{[%clk 0:00:18.5]} 38... Nc2 {[%clk 0:00:12.3]} 39. f4 {[%clk 0:00:19]} 39...
Nb4 {[%clk 0:00:13.1]} 40. a4 {[%clk 0:00:18.5]} 40... Nd5 {[%clk 0:00:13.6]}
41. Kd4 {[%clk 0:00:15.6]} 41... Nc7 {[%clk 0:00:11.7]} 42. Bf3 {[%clk 0:00:16]}
42... Na6 {[%clk 0:00:09.8]} 43. Kc4 {[%clk 0:00:16.4]} 43... Nc5 {[%clk
0:00:10]} 44. a5 {[%clk 0:00:17.3]} 44... e5 {[%clk 0:00:08.2]} 45. fxe5+ {[%clk
0:00:15.7]} 45... Kxe5 {[%clk 0:00:10.1]} 46. h4 {[%clk 0:00:15.9]} 46... Ne4
{[%clk 0:00:08.2]} 47. axb6 {[%clk 0:00:16.1]} 47... axb6 {[%clk 0:00:09]} 48.
Kb5 {[%clk 0:00:14.9]} 48... Nxg3 {[%clk 0:00:09.8]} 49. Kxb6 {[%clk 0:00:15.9]}
49... Kf4 {[%clk 0:00:10.7]} 50. Bd1 {[%clk 0:00:15.4]} 50... e5 {[%clk
0:00:12.1]} 51. Kc5 {[%clk 0:00:16]} 51... e4 {[%clk 0:00:13.7]} 52. Kd5 {[%clk
0:00:16.5]} 52... e3 {[%clk 0:00:14.9]} 53. Ke6 {[%clk 0:00:16.9]} 53... e2
{[%clk 0:00:15.7]} 54. Bxe2 {[%clk 0:00:16.9]} 54... Nxe2 {[%clk 0:00:17.6]} 55.
Kf6 {[%clk 0:00:16.6]} 55... h5 {[%clk 0:00:18.5]} 0-1

[Event "*** Titled Tuesday Blitz"]
[Site "Chess.com"]
[Date "2020.01.07"]
[Round "7"]
[White "ChainsOfFantasia"]
[Black "Proteuo"]
[Result "1/2-1/2"]
[WhiteElo "2506"]
[BlackElo "2352"]
[TimeControl "180+2"]
[EndTime "14:37:50 PST"]
[Termination "Game drawn - insufficient material"]

1. d4 {[%clk 0:03:01.9]} 1... Nf6 {[%clk 0:03:00.3]} 2. Nf3 {[%clk 0:03:01.9]}
2... d5 {[%clk 0:02:58]} 3. c4 {[%clk 0:03:02.6]} 3... c6 {[%clk 0:02:57]} 4.
Nc3 {[%clk 0:03:04.5]} 4... e6 {[%clk 0:02:57.6]} 5. g3 {[%clk 0:03:02.8]} 5...
Be7 {[%clk 0:02:58.4]} 6. Bg2 {[%clk 0:03:02.5]} 6... O-O {[%clk 0:02:59.3]} 7.
O-O {[%clk 0:03:02.8]} 7... Nbd7 {[%clk 0:03:00.4]} 8. Qd3 {[%clk 0:03:00.7]}
8... b6 {[%clk 0:02:59.2]} 9. e4 {[%clk 0:02:59.3]} 9... dxe4 {[%clk 0:02:56.8]}
10. Nxe4 {[%clk 0:03:01.2]} 10... Bb7 {[%clk 0:02:57.2]} 11. Rd1 {[%clk
0:02:52.1]} 11... c5 {[%clk 0:02:49.8]} 12. Nc3 {[%clk 0:02:48.4]} 12... cxd4
{[%clk 0:02:45.4]} 13. Qxd4 {[%clk 0:02:41.1]} 13... Nc5 {[%clk 0:02:44.2]} 14.
Bf4 {[%clk 0:02:34.8]} 14... Qxd4 {[%clk 0:02:38.5]} 15. Nxd4 {[%clk 0:02:36.7]}
15... Bxg2 {[%clk 0:02:31.8]} 16. Kxg2 {[%clk 0:02:38.6]} 16... Rac8 {[%clk
0:02:21.7]} 17. b3 {[%clk 0:02:26.7]} 17... Nh5 {[%clk 0:02:12]} 18. Be3 {[%clk
0:02:25.6]} 18... Rfd8 {[%clk 0:02:03.3]} 19. Ndb5 {[%clk 0:02:23.6]} 19... a6
{[%clk 0:01:59.7]} 20. Nd4 {[%clk 0:02:04.6]} 20... g6 {[%clk 0:01:44]} 21. g4
{[%clk 0:01:47.8]} 21... Ng7 {[%clk 0:01:39.6]} 22. Rac1 {[%clk 0:01:24.6]}
22... h5 {[%clk 0:01:36.8]} 23. h3 {[%clk 0:01:24.1]} 23... hxg4 {[%clk
0:01:36.4]} 24. hxg4 {[%clk 0:01:26]} 24... Ne8 {[%clk 0:01:22.4]} 25. Nde2
{[%clk 0:01:07.9]} 25... Rxd1 {[%clk 0:01:14.5]} 26. Rxd1 {[%clk 0:01:09.8]}
26... Rd8 {[%clk 0:01:15]} 27. Rxd8 {[%clk 0:01:08.6]} 27... Bxd8 {[%clk
0:01:15.7]} 28. Bxc5 {[%clk 0:01:09]} 28... bxc5 {[%clk 0:01:16.4]} 29. Na4
{[%clk 0:01:03.9]} 29... Be7 {[%clk 0:01:13.6]} 30. Nf4 {[%clk 0:00:54.3]} 30...
Nf6 {[%clk 0:01:13.2]} 31. Nd3 {[%clk 0:00:53.7]} 31... Nd7 {[%clk 0:01:10.6]}
32. Kf3 {[%clk 0:00:55.1]} 32... f5 {[%clk 0:01:08.1]} 33. gxf5 {[%clk
0:00:52.2]} 33... gxf5 {[%clk 0:01:06.1]} 34. Nc3 {[%clk 0:00:48.9]} 34... Kf7
{[%clk 0:01:05.3]} 35. Ke3 {[%clk 0:00:49.1]} 35... Kf6 {[%clk 0:00:58.3]} 36.
f4 {[%clk 0:00:49.8]} 36... Bd6 {[%clk 0:00:57.2]} 37. Ne2 {[%clk 0:00:46.6]}
37... Nb8 {[%clk 0:00:52.3]} 38. Ng1 {[%clk 0:00:46.8]} 38... Nc6 {[%clk
0:00:50.9]} 39. Nf3 {[%clk 0:00:47.2]} 39... e5 {[%clk 0:00:49]} 40. fxe5+
{[%clk 0:00:44.9]} 40... Nxe5 {[%clk 0:00:50.9]} 41. Nfxe5 {[%clk 0:00:45.5]}
41... Bxe5 {[%clk 0:00:49.6]} 42. Nxc5 {[%clk 0:00:46.7]} 42... a5 {[%clk
0:00:45]} 43. Nd3 {[%clk 0:00:45.5]} 43... Bc3 {[%clk 0:00:41.4]} 44. Nf4 {[%clk
0:00:42.7]} 44... Ke5 {[%clk 0:00:40.4]} 45. Nd5 {[%clk 0:00:39.5]} 45... Bd4+
{[%clk 0:00:40.9]} 46. Kd3 {[%clk 0:00:37.3]} 46... Bc5 {[%clk 0:00:39.7]} 47.
Ne3 {[%clk 0:00:32.6]} 47... f4 {[%clk 0:00:39.2]} 48. Nf1 {[%clk 0:00:29.4]}
48... f3 {[%clk 0:00:38.4]} 49. Nd2 {[%clk 0:00:30.3]} 49... f2 {[%clk 0:00:34]}
50. Ke2 {[%clk 0:00:30]} 50... Kf4 {[%clk 0:00:32.1]} 51. Nb1 {[%clk 0:00:22.3]}
51... Bd4 {[%clk 0:00:30.4]} 52. Na3 {[%clk 0:00:22.5]} 52... Kg3 {[%clk
0:00:30.8]} 53. Kf1 {[%clk 0:00:23.2]} 53... Kf3 {[%clk 0:00:30.4]} 54. Nc2
{[%clk 0:00:21]} 54... Bc5 {[%clk 0:00:30.5]} 55. a3 {[%clk 0:00:21.3]} 55...
Ke4 {[%clk 0:00:26.6]} 56. b4 {[%clk 0:00:19.8]} 56... axb4 {[%clk 0:00:27.2]}
57. axb4 {[%clk 0:00:21.7]} 57... Bxb4 {[%clk 0:00:21.5]} 58. Kxf2 {[%clk
0:00:22.8]} 58... Kd3 {[%clk 0:00:19.9]} 59. Nxb4+ {[%clk 0:00:21.7]} 59... Kxc4
{[%clk 0:00:20.5]} 1/2-1/2

[Event "*** Titled Tuesday Blitz"]
[Site "Chess.com"]
[Date "2020.01.07"]
[Round "7"]
[White "Zq1"]
[Black "Sven_Tica"]
[Result "0-1"]
[WhiteElo "2518"]
[BlackElo "2666"]
[TimeControl "180+2"]
[EndTime "14:38:02 PST"]
[Termination "Sven_Tica won by resignation"]

1. d4 {[%clk 0:03:01.9]} 1... d5 {[%clk 0:03:00.8]} 2. c4 {[%clk 0:03:02.7]}
2... e6 {[%clk 0:03:02.4]} 3. Nc3 {[%clk 0:03:01.9]} 3... Nf6 {[%clk 0:03:04]}
4. Nf3 {[%clk 0:03:01.4]} 4... Nbd7 {[%clk 0:03:04.7]} 5. e3 {[%clk 0:02:58.4]}
5... a6 {[%clk 0:03:04.2]} 6. a3 {[%clk 0:02:58.2]} 6... dxc4 {[%clk 0:03:02.9]}
7. Bxc4 {[%clk 0:02:58.3]} 7... b5 {[%clk 0:03:04.6]} 8. Ba2 {[%clk 0:02:55]}
8... Bb7 {[%clk 0:03:06]} 9. O-O {[%clk 0:02:55.2]} 9... Bd6 {[%clk 0:03:04.8]}
10. Qe2 {[%clk 0:02:53.4]} 10... O-O {[%clk 0:03:05.5]} 11. e4 {[%clk 0:02:54]}
11... e5 {[%clk 0:03:07.1]} 12. dxe5 {[%clk 0:02:44.9]} 12... Nxe5 {[%clk
0:03:08.1]} 13. Nxe5 {[%clk 0:02:46.5]} 13... Bxe5 {[%clk 0:03:09.5]} 14. f3
{[%clk 0:02:47.2]} 14... c5 {[%clk 0:03:05.1]} 15. Be3 {[%clk 0:02:46.8]} 15...
Qe7 {[%clk 0:03:03.7]} 16. Rad1 {[%clk 0:02:40.3]} 16... Rfd8 {[%clk 0:03:04.1]}
17. Qf2 {[%clk 0:02:37.3]} 17... c4 {[%clk 0:02:55.4]} 18. Bb1 {[%clk
0:02:36.6]} 18... Rxd1 {[%clk 0:02:54.8]} 19. Rxd1 {[%clk 0:02:36.3]} 19... Rd8
{[%clk 0:02:56.4]} 20. Rxd8+ {[%clk 0:02:32.8]} 20... Qxd8 {[%clk 0:02:58.3]}
21. h3 {[%clk 0:02:27]} 21... h6 {[%clk 0:02:36.1]} 22. Qd2 {[%clk 0:02:25.9]}
22... Qc7 {[%clk 0:02:30.5]} 23. Kf2 {[%clk 0:02:13.9]} 23... Nd7 {[%clk
0:02:09]} 24. f4 {[%clk 0:02:05.8]} 24... Bxc3 {[%clk 0:01:56.1]} 25. Qxc3
{[%clk 0:02:06.5]} 25... Nf6 {[%clk 0:01:49]} 26. Qd4 {[%clk 0:01:57.2]} 26...
Qe7 {[%clk 0:01:47.3]} 27. e5 {[%clk 0:01:49.7]} 27... Nd5 {[%clk 0:01:47.4]}
28. Be4 {[%clk 0:01:31.6]} 28... Nxe3 {[%clk 0:01:41.3]} 29. Kxe3 {[%clk
0:01:31]} 29... Bxe4 {[%clk 0:01:41.6]} 30. Qxe4 {[%clk 0:01:23.2]} 30... c3
{[%clk 0:01:37.2]} 31. bxc3 {[%clk 0:00:58.2]} 31... Qxa3 {[%clk 0:01:37.9]} 32.
Qb4 {[%clk 0:00:58.2]} 32... Qc1+ {[%clk 0:01:35.6]} 33. Kf2 {[%clk 0:00:57.9]}
33... Qd2+ {[%clk 0:01:35]} 34. Kf3 {[%clk 0:00:58.9]} 34... Qd3+ {[%clk
0:01:35.6]} 35. Kf2 {[%clk 0:00:59.9]} 35... h5 {[%clk 0:01:32.1]} 36. Qd4
{[%clk 0:00:52]} 36... Qc2+ {[%clk 0:01:22]} 37. Kg3 {[%clk 0:00:49.6]} 37...
Qf5 {[%clk 0:01:15.1]} 38. Kf3 {[%clk 0:00:47.7]} 38... g5 {[%clk 0:00:48.5]}
39. g3 {[%clk 0:00:25.5]} 39... gxf4 {[%clk 0:00:43.7]} 40. gxf4 {[%clk
0:00:24.2]} 40... Qxh3+ {[%clk 0:00:43.4]} 41. Kf2 {[%clk 0:00:21.5]} 41... Qh4+
{[%clk 0:00:41.8]} 42. Kf3 {[%clk 0:00:22.5]} 42... Qg4+ {[%clk 0:00:43.2]} 43.
Kf2 {[%clk 0:00:22.5]} 43... h4 {[%clk 0:00:43.8]} 44. Qd8+ {[%clk 0:00:21.4]}
44... Kh7 {[%clk 0:00:45]} 45. Qf6 {[%clk 0:00:22.5]} 45... Qh5 {[%clk
0:00:41.9]} 46. f5 {[%clk 0:00:20.9]} 46... h3 {[%clk 0:00:38.2]} 47. e6 {[%clk
0:00:18.4]} 47... fxe6 {[%clk 0:00:37.4]} 48. Qe7+ {[%clk 0:00:16.4]} 48... Kh6
{[%clk 0:00:37.2]} 49. Qf6+ {[%clk 0:00:17.2]} 49... Kh7 {[%clk 0:00:36.7]} 50.
Qe7+ {[%clk 0:00:18.3]} 50... Kg8 {[%clk 0:00:37.1]} 51. Qd8+ {[%clk 0:00:15.5]}
51... Kg7 {[%clk 0:00:37.9]} 52. Qe7+ {[%clk 0:00:15.1]} 52... Qf7 {[%clk
0:00:38.4]} 53. Qg5+ {[%clk 0:00:15.5]} 53... Kh7 {[%clk 0:00:36.2]} 54. Qh4+
{[%clk 0:00:16.3]} 54... Kg8 {[%clk 0:00:36.9]} 55. Qd8+ {[%clk 0:00:15.6]}
55... Qf8 {[%clk 0:00:37.1]} 56. Qg5+ {[%clk 0:00:15.8]} 56... Kf7 {[%clk
0:00:38.5]} 57. Qg6+ {[%clk 0:00:16.3]} 57... Ke7 {[%clk 0:00:39.9]} 58. Qxe6+
{[%clk 0:00:17.3]} 58... Kd8 {[%clk 0:00:41.4]} 59. f6 {[%clk 0:00:16.9]} 59...
Qc5+ {[%clk 0:00:35.7]} 60. Kg3 {[%clk 0:00:11.5]} 60... Qc7+ {[%clk 0:00:28.7]}
61. Kf2 {[%clk 0:00:09.9]} 61... Qc5+ {[%clk 0:00:24.6]} 62. Ke1 {[%clk
0:00:07.9]} 62... Qxc3+ {[%clk 0:00:25.4]} 63. Ke2 {[%clk 0:00:09.1]} 63... Qc4+
{[%clk 0:00:26.7]} 0-1

[Event "*** Titled Tuesday Blitz"]
[Site "Chess.com"]
[Date "2020.01.07"]
[Round "7"]
[White "PawnEatingZombie"]
[Black "wadsy27"]
[Result "0-1"]
[WhiteElo "2291"]
[BlackElo "2468"]
[TimeControl "180+2"]
[EndTime "14:38:05 PST"]
[Termination "wadsy27 won by resignation"]

1. d4 {[%clk 0:03:01.9]} 1... Nf6 {[%clk 0:03:00.3]} 2. c4 {[%clk 0:03:02.9]}
2... c5 {[%clk 0:03:01]} 3. d5 {[%clk 0:03:03.1]} 3... e6 {[%clk 0:03:01.9]} 4.
Nc3 {[%clk 0:03:03.7]} 4... exd5 {[%clk 0:03:02.7]} 5. cxd5 {[%clk 0:03:05.6]}
5... d6 {[%clk 0:03:04.3]} 6. e4 {[%clk 0:03:07.2]} 6... g6 {[%clk 0:03:02.6]}
7. Bd3 {[%clk 0:03:08.7]} 7... Bg7 {[%clk 0:02:58.5]} 8. h3 {[%clk 0:03:09.4]}
8... O-O {[%clk 0:02:57.7]} 9. Nf3 {[%clk 0:03:10.7]} 9... Nh5 {[%clk
0:02:59.3]} 10. O-O {[%clk 0:03:09.7]} 10... a6 {[%clk 0:03:00.4]} 11. a4 {[%clk
0:03:09.3]} 11... Nd7 {[%clk 0:03:01.6]} 12. Be3 {[%clk 0:03:07.8]} 12... Ne5
{[%clk 0:03:01.4]} 13. Be2 {[%clk 0:03:07.3]} 13... Nxf3+ {[%clk 0:03:00.8]} 14.
Bxf3 {[%clk 0:03:08.3]} 14... Nf6 {[%clk 0:03:02]} 15. Re1 {[%clk 0:03:02.7]}
15... Qe7 {[%clk 0:03:02.6]} 16. Bf4 {[%clk 0:03:01.4]} 16... Nd7 {[%clk
0:03:03.1]} 17. Be2 {[%clk 0:02:58.4]} 17... Rb8 {[%clk 0:03:01.5]} 18. Bf1
{[%clk 0:02:56.6]} 18... Ne5 {[%clk 0:03:00.5]} 19. Bg3 {[%clk 0:02:45.5]} 19...
g5 {[%clk 0:02:47]} 20. Qd2 {[%clk 0:02:41.3]} 20... h5 {[%clk 0:02:45.1]} 21.
f4 {[%clk 0:02:36.4]} 21... gxf4 {[%clk 0:02:42]} 22. Bxf4 {[%clk 0:02:30.1]}
22... Ng6 {[%clk 0:02:26.7]} 23. Bh6 {[%clk 0:02:14.7]} 23... Bd4+ {[%clk
0:02:23.1]} 24. Kh1 {[%clk 0:02:13.9]} 24... Re8 {[%clk 0:02:17.5]} 25. Bd3
{[%clk 0:02:12.5]} 25... Be5 {[%clk 0:02:16.1]} 26. Rf1 {[%clk 0:02:10.9]} 26...
Qh4 {[%clk 0:02:11.4]} 27. Qf2 {[%clk 0:01:48]} 27... Qxf2 {[%clk 0:02:11.2]}
28. Rxf2 {[%clk 0:01:48.3]} 28... Bg3 {[%clk 0:02:09.9]} 29. Rf3 {[%clk
0:01:46.4]} 29... h4 {[%clk 0:02:09.1]} 30. Raf1 {[%clk 0:01:41.6]} 30... Ne5
{[%clk 0:02:08.1]} 31. Re3 {[%clk 0:01:40.9]} 31... c4 {[%clk 0:01:56.7]} 32.
Be2 {[%clk 0:01:41.2]} 32... b5 {[%clk 0:01:57.2]} 33. axb5 {[%clk 0:01:42.3]}
33... axb5 {[%clk 0:01:57.6]} 34. Bf4 {[%clk 0:01:36.4]} 34... b4 {[%clk
0:01:52.4]} 35. Bxg3 {[%clk 0:01:31.5]} 35... hxg3 {[%clk 0:01:45.1]} 36. Rxg3+
{[%clk 0:01:31.4]} 36... Kf8 {[%clk 0:01:45.3]} 37. Nd1 {[%clk 0:01:31.1]} 37...
c3 {[%clk 0:01:34.7]} 38. bxc3 {[%clk 0:01:31.1]} 38... b3 {[%clk 0:01:34.2]}
39. Nb2 {[%clk 0:01:30.2]} 39... Bd7 {[%clk 0:01:33]} 40. c4 {[%clk 0:01:27.7]}
40... Rec8 {[%clk 0:01:32.4]} 41. Rc1 {[%clk 0:01:28.5]} 41... Rb4 {[%clk
0:01:26.8]} 42. Rcc3 {[%clk 0:01:26.4]} 42... Rcb8 {[%clk 0:01:16.6]} 43. Bd1
{[%clk 0:01:18.5]} 43... Ba4 {[%clk 0:01:13.1]} 44. Nxa4 {[%clk 0:01:15.3]}
44... Rxa4 {[%clk 0:01:14.2]} 45. Bxb3 {[%clk 0:01:05]} 45... Ra1+ {[%clk
0:01:14.9]} 46. Kh2 {[%clk 0:01:04.4]} 46... Re1 {[%clk 0:01:13.8]} 47. Bc2
{[%clk 0:00:50]} 47... Rc8 {[%clk 0:01:03.5]} 48. Bd3 {[%clk 0:00:28.6]} 48...
Nxd3 {[%clk 0:00:59.6]} 49. Rgxd3 {[%clk 0:00:28.5]} 49... Rxe4 {[%clk
0:00:58.8]} 50. c5 {[%clk 0:00:28.8]} 50... Rxc5 {[%clk 0:00:55.4]} 51. Rxc5
{[%clk 0:00:21]} 51... dxc5 {[%clk 0:00:56.5]} 52. d6 {[%clk 0:00:22.1]} 52...
Ke8 {[%clk 0:00:58]} 53. Rd5 {[%clk 0:00:20]} 53... c4 {[%clk 0:00:56.5]} 54.
Rc5 {[%clk 0:00:19.8]} 54... Kd7 {[%clk 0:00:57]} 55. Rc7+ {[%clk 0:00:15.5]}
55... Kxd6 {[%clk 0:00:57.9]} 56. Rxf7 {[%clk 0:00:15.1]} 56... c3 {[%clk
0:00:59.3]} 57. Rf1 {[%clk 0:00:12.5]} 57... Kd5 {[%clk 0:00:58.9]} 58. g4
{[%clk 0:00:10.2]} 58... Kd4 {[%clk 0:00:58]} 59. Kg3 {[%clk 0:00:09.8]} 59...
Kd3 {[%clk 0:00:57.6]} 60. Rc1 {[%clk 0:00:08.6]} 60... Kd2 {[%clk 0:00:57.6]}
61. Rxc3 {[%clk 0:00:08.5]} 61... Kxc3 {[%clk 0:00:58.4]} 62. g5 {[%clk
0:00:09.2]} 62... Kd4 {[%clk 0:00:59.7]} 63. h4 {[%clk 0:00:09.7]} 63... Ke5
{[%clk 0:01:00.7]} 64. h5 {[%clk 0:00:06]} 64... Kf5 {[%clk 0:01:01.4]} 65. g6
{[%clk 0:00:07.4]} 65... Kf6 {[%clk 0:01:01.3]} 66. Kf3 {[%clk 0:00:07.5]} 66...
Ra4 {[%clk 0:01:01.8]} 0-1